[Event "Croatian-ch Youth U15 2022"]
[Site "Trogir"]
[Date "2022.06.26"]
[Round "7.8"]
[White "Sokcevic, Petar"]
[Black "Rautner, Fran"]
[Result "1/2-1/2"]
[ECO "A16"]
[WhiteElo "1368"]
[BlackElo "1753"]
[Annotator "NA RC"]
[PlyCount "68"]
[EventDate "2022.06.22"]
[EventType "swiss"]
[EventCountry "CRO"]
[SourceTitle "playchess.com"]
[Source "ChessBase"]
[SourceQuality "1"]
[TimeControl "5400+30"]

1. c4 {[%emt 0:00:08]} Nf6 {[%emt 0:05:20]} 2. Nc3 {[%emt 0:00:10]} g6 {[%emt 0:00:22]} 3. e4 {[%emt 0:00:18]} d6 {[%emt 0:00:12]} 4. d3 {[%emt 0:00:11]} Bg7 {[%emt 0:00:34]} 5. Be2 {[%emt 0:00:13]} O-O {[%emt 0:01:26]} 6. Nf3 {[%emt 0:00:07]} c5 {[%emt 0:03:06]} 7. O-O {[%emt 0:00:23]} Nc6 {[%emt 0:00:25]} 8. Rb1 {[%emt 0:00:59]} Ne8 {[%emt 0:19:55]} 9. Ne1 {[%emt 0:09:37]} f5 {[%emt 0:04:54]} 10. exf5 {[%emt 0:04:53]} Bxf5 {[%emt 0:01:54]} 11. Bg4 {[%emt 0:03:17]} Nc7 {[%emt 0:10:43]} 12. Nc2 {[%emt 0:04:31]} Bxg4 {[%emt 0:05:26]} 13. Qxg4 {[%emt 0:00:16]} Ne5 {[%emt 0:00:14]} 14. Qe2 {[%emt 0:01:05]} Qd7 {[%emt 0:03:04]} 15. d4 {[%emt 0:05:51]} Nf3+ {[%emt 0:11:07]} 16. gxf3 {[%emt 0:01:51]} cxd4 {[%emt 0:00:26]} 17. Ne4 {[%emt 0:02:13]} Qh3 {[%emt 0:01:23]} 18. Ng3 {[%emt 0:02:19]} h5 {[%emt 0:03:11]} 19. Qe4 {[%emt 0:07:12]} h4 {[%emt 0:09:42]} 20. Nxd4 {[%emt 0:01:24]} hxg3 {[%emt 0:05:18]} 21. fxg3 {[%emt 0:00:15]} d5 {[%emt 0:01:52]} 22. cxd5 {[%emt 0:02:13]} e5 {[%emt 0:02:48]} 23. dxe6 {[%emt 0:00:21]} Bxd4+ {[%emt 0:01:30]} 24. Qxd4 {[%emt 0:00:48]} Rad8 {[%emt 0:00:35]} 25. Qe4 {[%emt 0:01:39]} Nxe6 {[%emt 0:00:57]} 26. Qxg6+ {[%emt 0:00:55]} Ng7 {[%emt 0:00:12]} 27. Bh6 {[%emt 0:01:41]} Rf7 {[%emt 0:00:21]} 28. Bxg7 {[%emt 0:01:04]} Rxg7 {[%emt 0:00:02]} 29. Qe4 {[%emt 0:00:59]} Rd2 {[%emt 0:05:51]} 30. Rf2 {[%emt 0:01:12]} Rxg3+ {[%emt 0:00:58]} 31. hxg3 {[%emt 0:01:26]} Qxg3+ {[%emt 0:00:09]} 32. Kh1 {[%emt 0:01:37]} Qh3+ {[%emt 0:00:10]} 33. Kg1 {[%emt 0:00:23]} Qg3+ {[%emt 0:00:05]} 34. Kh1 {[%emt 0:00:14]} Qh3+ {[%emt 0:01:30]} 1/2-1/2

[Event "Croatian-ch Youth U15 2022"]
[Site "Trogir"]
[Date "2022.06.26"]
[Round "7.9"]
[White "Begic, Klara"]
[Black "Friscic, Laura"]
[Result "1-0"]
[ECO "D02"]
[WhiteElo "1727"]
[BlackElo "1106"]
[Annotator "NA RC"]
[PlyCount "166"]
[EventDate "2022.06.22"]
[EventType "swiss"]
[EventCountry "CRO"]
[SourceTitle "playchess.com"]
[Source "ChessBase"]
[SourceQuality "1"]
[TimeControl "5400+30"]

1. d4 {[%emt 0:00:02]} Nf6 {[%emt 0:00:14]} 2. Bf4 {[%emt 0:00:17]} e6 {[%emt 0:00:24]} 3. e3 {[%emt 0:00:06]} c5 {[%emt 0:01:11]} 4. c3 {[%emt 0:00:11]} d5 {[%emt 0:01:52]} 5. Nd2 {[%emt 0:01:11]} Nc6 {[%emt 0:02:45]} 6. Ngf3 {[%emt 0:01:56]} Bd6 {[%emt 0:10:11]} 7. Bg3 {[%emt 0:01:42]} O-O {[%emt 0:00:49]} 8. Bd3 {[%emt 0:00:39]} Qc7 {[%emt 0:06:38]} 9. dxc5 {[%emt 0:06:14]} Bxg3 {[%emt 0:01:28]} 10. hxg3 {[%emt 0:00:20]} Ne5 {[%emt 0:02:20]} 11. Nxe5 {[%emt 0:00:22]} Qxe5 {[%emt 0:00:06]} 12. Qc2 {[%emt 0:01:37]} h6 {[%emt 0:01:22]} 13. Nf3 {[%emt 0:01:39]} Qc7 {[%emt 0:02:01]} 14. b4 {[%emt 0:03:02]} Bd7 {[%emt 0:03:23]} 15. O-O {[%emt 0:00:31]} Rfc8 {[%emt 0:02:12]} 16. Rfc1 {[%emt 0:01:14]} Ng4 {[%emt 0:20:55]} 17. e4 {[%emt 0:16:38]} dxe4 {[%emt 0:01:04]} 18. Bxe4 {[%emt 0:00:28]} Bc6 {[%emt 0:01:12]} 19. Nd4 {[%emt 0:02:46]} Bxe4 {[%emt 0:02:22]} 20. Qxe4 {[%emt 0:00:08]} Nf6 {[%emt 0:00:18]} 21. Qf3 {[%emt 0:01:21]} Nd5 {[%emt 0:01:38]} 22. a3 {[%emt 0:07:59]} Qe5 {[%emt 0:02:32]} 23. Re1 {[%emt 0:03:12]} Qf6 {[%emt 0:00:29]} 24. Qxf6 {[%emt 0:00:39]} Nxf6 {[%emt 0:00:11]} 25. Nb5 {[%emt 0:04:37]} Rd8 {[%emt 0:04:13]} 26. Rad1 {[%emt 0:01:08]} a6 {[%emt 0:01:33]} 27. Nd6 {[%emt 0:04:16]} Rd7 {[%emt 0:01:06]} 28. Nc4 {[%emt 0:11:03]} Rad8 {[%emt 0:01:16]} 29. Nb2 {[%emt 0:05:38]} Rd2 {[%emt 0:13:44]} 30. Rxd2 {[%emt 0:00:23]} Rxd2 {[%emt 0:00:16]} 31. Nc4 {[%emt 0:03:24]} Rc2 {[%emt 0:00:31]} 32. Nd6 {[%emt 0:01:54]} Rxc3 {[%emt 0:01:09]} 33. Nxb7 {[%emt 0:00:07]} Rxa3 {[%emt 0:03:05]} 34. c6 {[%emt 0:04:30]} Rc3 {[%emt 0:00:37]} 35. Nc5 {[%emt 0:00:29]} Nd5 {[%emt 0:00:29]} 36. Rd1 {[%emt 0:01:13]} Ne7 {[%emt 0:04:30]} 37. Rd8+ {[%emt 0:02:23]} Kh7 {[%emt 0:00:07]} 38. c7 {[%emt 0:00:43]} a5 {[%emt 0:00:14]} 39. b5 {[%emt 0:06:49]} Rxc5 {[%emt 0:01:28]} 40. b6 {[%emt 0:00:05]} Rb5 {[%emt 0:01:08]} 41. Rb8 {[%emt 0:00:11]} Rc5 {[%emt 0:01:45]} 42. b7 {[%emt 0:06:18]} Rxc7 {[%emt 0:01:01]} 43. Rh8+ {[%emt 0:00:05]} Kxh8 {[%emt 0:00:26]} 44. b8=Q+ {[%emt 0:00:05]} Rc8 {[%emt 0:00:11]} 45. Qb7 {[%emt 0:00:08]} Rc1+ {[%emt 0:00:27]} 46. Kh2 {[%emt 0:00:06]} Ng8 {[%emt 0:00:54]} 47. Qxf7 {[%emt 0:00:06]} Re1 {[%emt 0:01:19]} 48. Qa7 {[%emt 0:01:52]} Re5 {[%emt 0:00:50]} 49. Qd4 {[%emt 0:00:13]} Rf5 {[%emt 0:00:31]} 50. f3 {[%emt 0:00:17]} Rh5+ {[%emt 0:01:47]} 51. Kg1 {[%emt 0:00:07]} Rd5 {[%emt 0:01:39]} 52. Qe4 {[%emt 0:00:52]} Rd1+ {[%emt 0:00:37]} 53. Kh2 {[%emt 0:00:16]} Rd6 {[%emt 0:00:18]} 54. g4 {[%emt 0:00:26]} Rb6 {[%emt 0:00:36]} 55. Kg3 {[%emt 0:00:22]} Ra6 {[%emt 0:00:13]} 56. Qc4 {[%emt 0:00:13]} Rd6 {[%emt 0:00:19]} 57. Qc7 {[%emt 0:00:20]} Ra6 {[%emt 0:00:35]} 58. Qc4 {[%emt 0:00:17]} Rd6 {[%emt 0:00:08]} 59. Kf4 {[%emt 0:00:34]} Kh7 {[%emt 0:01:53]} 60. Qe4+ {[%emt 0:00:55]} Kh8 {[%emt 0:00:16]} 61. Qe5 {[%emt 0:00:19]} Ra6 {[%emt 0:00:24]} 62. Qb5 {[%emt 0:00:24]} Rd6 {[%emt 0:00:12]} 63. Qxa5 {[%emt 0:00:06]} Rd4+ {[%emt 0:00:40]} 64. Kg3 {[%emt 0:00:29]} Rd6 {[%emt 0:00:27]} 65. Qe5 {[%emt 0:00:19]} Ra6 {[%emt 0:00:00]} 66. g5 {[%emt 0:01:12]} hxg5 {[%emt 0:00:20]} 67. Qxg5 {[%emt 0:00:02]} Nh6 {[%emt 0:00:23]} 68. Qc1 {[%emt 0:00:38]} Ng8 {[%emt 0:00:18]} 69. Qc5 {[%emt 0:00:11]} Kh7 {[%emt 0:00:30]} 70. Qd4 {[%emt 0:00:33]} Kh8 {[%emt 0:00:12]} 71. Qh4+ {[%emt 0:01:00]} Nh6 {[%emt 0:00:11]} 72. Qd8+ {[%emt 0:00:04]} Ng8 {[%emt 0:00:09]} 73. Kf4 {[%emt 0:00:56]} Rc6 {[%emt 0:00:22]} 74. g4 {[%emt 0:00:24]} Ra6 {[%emt 0:00:39]} 75. Kg3 {[%emt 0:00:11]} g6 {[%emt 0:00:38]} 76. Qc8 {[%emt 0:00:37]} Ra7 {[%emt 0:00:53]} 77. Qxe6 {[%emt 0:00:06]} Kh7 {[%emt 0:00:23]} 78. Qe3 {[%emt 0:00:20]} Rf7 {[%emt 0:00:16]} 79. Qg5 {[%emt 0:00:19]} Nh6 {[%emt 0:00:27]} 80. Qh4 {[%emt 0:00:55]} Kg7 {[%emt 0:00:09]} 81. Qd8 {[%emt 0:00:10]} Ng8 {[%emt 0:00:26]} 82. Qd4+ {[%emt 0:00:11]} Kh7 {[%emt 0:00:08]} 83. Qd5 {[%emt 0:01:30]} Nf6 {[%emt 0:00:42]} 1-0

[Event "Croatian-ch Youth U15 2022"]
[Site "Trogir"]
[Date "2022.06.26"]
[Round "7.11"]
[White "Buchwald, Svea"]
[Black "Zovko, Josipa"]
[Result "0-1"]
[ECO "D53"]
[WhiteElo "1187"]
[BlackElo "1419"]
[Annotator "NA RC"]
[PlyCount "118"]
[EventDate "2022.06.22"]
[EventType "swiss"]
[EventCountry "CRO"]
[SourceTitle "playchess.com"]
[Source "ChessBase"]
[SourceQuality "1"]
[TimeControl "5400+30"]

1. Nf3 {[%emt 0:00:03]} d5 {[%emt 0:02:58]} 2. d4 {[%emt 0:00:29]} c5 {[%emt 0:01:10]} 3. c4 {[%emt 0:05:45]} e6 {[%emt 0:07:53]} 4. Nc3 {[%emt 0:01:37]} Nf6 {[%emt 0:03:50]} 5. Bg5 {[%emt 0:02:04]} Be7 {[%emt 0:10:37]} 6. e3 {[%emt 0:01:59]} h6 {[%emt 0:02:26]} 7. Bh4 {[%emt 0:01:21]} Nbd7 {[%emt 0:03:56]} 8. Be2 {[%emt 0:04:05]} O-O {[%emt 0:04:27]} 9. O-O {[%emt 0:00:15]} dxc4 {[%emt 0:05:23]} 10. Bxc4 {[%emt 0:00:24]} Nb6 {[%emt 0:00:38]} 11. Bb3 {[%emt 0:04:19]} c4 {[%emt 0:08:40]} 12. Ba4 {[%emt 0:00:57]} Nfd5 {[%emt 0:04:04]} 13. Bxe7 {[%emt 0:01:18]} Qxe7 {[%emt 0:04:28]} 14. Nxd5 {[%emt 0:16:59]} exd5 {[%emt 0:02:12]} 15. Ne5 {[%emt 0:02:54]} Bf5 {[%emt 0:05:03]} 16. Bc2 {[%emt 0:02:14]} f6 {[%emt 0:03:16]} 17. Ng6 {[%emt 0:02:30]} Bxg6 {[%emt 0:00:26]} 18. Bxg6 {[%emt 0:00:07]} f5 {[%emt 0:01:41]} 19. Qc2 {[%emt 0:03:23]} Qg5 {[%emt 0:01:17]} 20. Bxf5 {[%emt 0:03:24]} Qxf5 {[%emt 0:00:39]} 21. Qxf5 {[%emt 0:01:00]} Rxf5 {[%emt 0:00:07]} 22. Rac1 {[%emt 0:00:18]} Rf6 {[%emt 0:04:10]} 23. Rc2 {[%emt 0:00:47]} Rc6 {[%emt 0:01:53]} 24. Re1 {[%emt 0:01:05]} Re8 {[%emt 0:01:07]} 25. g3 {[%emt 0:00:32]} Nd7 {[%emt 0:02:28]} 26. Kg2 {[%emt 0:00:57]} Nf6 {[%emt 0:01:09]} 27. f3 {[%emt 0:00:41]} b5 {[%emt 0:01:18]} 28. Rce2 {[%emt 0:00:40]} Rce6 {[%emt 0:01:55]} 29. Kf2 {[%emt 0:00:27]} a5 {[%emt 0:01:22]} 30. a3 {[%emt 0:01:50]} Kf7 {[%emt 0:02:43]} 31. Rc1 {[%emt 0:01:48]} Nd7 {[%emt 0:02:17]} 32. Rc3 {[%emt 0:00:48]} b4 {[%emt 0:01:27]} 33. axb4 {[%emt 0:00:26]} axb4 {[%emt 0:00:01]} 34. Rc1 {[%emt 0:00:19]} Nb6 {[%emt 0:01:47]} 35. Ra1 {[%emt 0:00:50]} Ra8 {[%emt 0:00:28]} 36. Rxa8 {[%emt 0:00:46]} Nxa8 {[%emt 0:00:07]} 37. e4 {[%emt 0:00:09]} c3 {[%emt 0:01:44]} 38. bxc3 {[%emt 0:01:29]} bxc3 {[%emt 0:05:15]} 39. Rc2 {[%emt 0:01:05]} dxe4 {[%emt 0:00:22]} 40. Rxc3 {[%emt 0:00:31]} exf3 {[%emt 0:01:23]} 41. Rxf3+ {[%emt 0:00:25]} Rf6 {[%emt 0:00:12]} 42. Rxf6+ {[%emt 0:00:09]} Kxf6 {[%emt 0:00:40]} 43. Ke3 {[%emt 0:00:04]} Ke6 {[%emt 0:00:48]} 44. Ke4 {[%emt 0:00:42]} Nc7 {[%emt 0:00:40]} 45. Kf4 {[%emt 0:03:07]} Nd5+ {[%emt 0:00:46]} 46. Kg4 {[%emt 0:01:08]} Nf6+ {[%emt 0:00:39]} 47. Kf4 {[%emt 0:00:15]} g5+ {[%emt 0:00:58]} 48. Ke3 {[%emt 0:00:11]} Ng4+ {[%emt 0:00:35]} 49. Ke4 {[%emt 0:00:32]} Nxh2 {[%emt 0:00:37]} 50. d5+ {[%emt 0:00:03]} Kd6 {[%emt 0:00:28]} 51. Kd4 {[%emt 0:02:33]} h5 {[%emt 0:00:43]} 52. Ke4 {[%emt 0:00:11]} g4 {[%emt 0:00:27]} 53. Kf5 {[%emt 0:07:46]} Kxd5 {[%emt 0:00:23]} 54. Kg5 {[%emt 0:00:17]} Ke4 {[%emt 0:00:06]} 55. Kxh5 {[%emt 0:00:33]} Kf3 {[%emt 0:00:03]} 56. Kh4 {[%emt 0:00:42]} Nf1 {[%emt 0:00:04]} 57. Kg5 {[%emt 0:00:12]} Kxg3 {[%emt 0:00:25]} 58. Kf5 {[%emt 0:00:32]} Kf3 {[%emt 0:00:18]} 59. Kg5 {[%emt 0:00:11]} g3 {[%emt 0:00:07]} 0-1

[Event "Croatian-ch Youth U15 2022"]
[Site "Trogir"]
[Date "2022.06.26"]
[Round "8.1"]
[White "Grgantov, Marin"]
[Black "Sundac, Ivano"]
[Result "1/2-1/2"]
[ECO "B23"]
[WhiteElo "2081"]
[BlackElo "1978"]
[Annotator "NA RC"]
[PlyCount "89"]
[EventDate "2022.06.22"]
[EventType "swiss"]
[EventCountry "CRO"]
[SourceTitle "playchess.com"]
[Source "ChessBase"]
[SourceQuality "1"]
[TimeControl "5400+30"]

1. e4 {[%emt 0:00:03]} c5 {[%emt 0:00:02]} 2. Nc3 {[%emt 0:00:09]} Nc6 {[%emt 0:00:05]} 3. f4 {[%emt 0:00:06]} g6 {[%emt 0:00:05]} 4. Nf3 {[%emt 0:00:06]} Bg7 {[%emt 0:00:05]} 5. Bb5 {[%emt 0:00:17]} Nd4 {[%emt 0:00:07]} 6. O-O {[%emt 0:00:07]} Nxb5 {[%emt 0:00:02]} 7. Nxb5 {[%emt 0:00:07]} d5 {[%emt 0:00:13]} 8. exd5 {[%emt 0:00:44]} a6 {[%emt 0:00:04]} 9. Nc3 {[%emt 0:00:09]} Nf6 {[%emt 0:00:05]} 10. d4 {[%emt 0:01:19]} Nxd5 {[%emt 0:00:04]} 11. dxc5 {[%emt 0:00:38]} Nxc3 {[%emt 0:00:17]} 12. Qxd8+ {[%emt 0:00:10]} Kxd8 {[%emt 0:00:03]} 13. bxc3 {[%emt 0:00:08]} Bxc3 {[%emt 0:00:52]} 14. Rb1 {[%emt 0:00:10]} Kc7 {[%emt 0:00:22]} 15. Rb3 {[%emt 0:00:18]} Bf6 {[%emt 0:01:26]} 16. Bd2 {[%emt 0:02:25]} a5 {[%emt 0:00:32]} 17. Rb5 {[%emt 0:22:40]} Be6 {[%emt 0:01:50]} 18. Rfb1 {[%emt 0:31:23]} Bd5 {[%emt 0:03:26]} 19. a3 {[%emt 0:03:16]} a4 {[%emt 0:04:02]} 20. Ne5 {[%emt 0:06:44]} Bxe5 {[%emt 0:00:52]} 21. fxe5 {[%emt 0:00:01]} Kd7 {[%emt 0:01:35]} 22. Bc3 {[%emt 0:04:25]} Ke6 {[%emt 0:01:27]} 23. R5b4 {[%emt 0:04:42]} Rhd8 {[%emt 0:02:13]} 24. Kf2 {[%emt 0:03:06]} Bc6 {[%emt 0:00:44]} 25. g3 {[%emt 0:01:04]} Rd5 {[%emt 0:01:18]} 26. Bd4 {[%emt 0:01:09]} f6 {[%emt 0:03:42]} 27. exf6 {[%emt 0:00:32]} Rf5+ {[%emt 0:00:27]} 28. Ke2 {[%emt 0:00:55]} exf6 {[%emt 0:00:05]} 29. Rf1 {[%emt 0:01:40]} Rxf1 {[%emt 0:01:00]} 30. Kxf1 {[%emt 0:00:01]} f5 {[%emt 0:00:26]} 31. Be3 {[%emt 0:03:20]} Rd8 {[%emt 0:01:11]} 32. Rd4 {[%emt 0:00:59]} Rxd4 {[%emt 0:00:15]} 33. Bxd4 {[%emt 0:00:01]} Kd5 {[%emt 0:00:07]} 34. Bb2 {[%emt 0:06:07]} Kxc5 {[%emt 0:00:07]} 35. Ke2 {[%emt 0:00:11]} Kc4 {[%emt 0:00:09]} 36. Kd2 {[%emt 0:00:33]} b5 {[%emt 0:00:22]} 37. Bc3 {[%emt 0:00:09]} g5 {[%emt 0:00:49]} 38. Bb4 {[%emt 0:01:04]} f4 {[%emt 0:00:39]} 39. gxf4 {[%emt 0:00:07]} gxf4 {[%emt 0:00:05]} 40. Ke2 {[%emt 0:00:19]} Be4 {[%emt 0:00:32]} 41. c3 {[%emt 0:00:10]} Kd5 {[%emt 0:00:26]} 42. Kf2 {[%emt 0:01:25]} Ke5 {[%emt 0:00:07]} 43. Bc5 {[%emt 0:02:18]} Kf5 {[%emt 0:00:07]} 44. Bd6 {[%emt 0:00:25]} Kg4 {[%emt 0:00:08]} 45. Bc7 {[%emt 0:00:27]} 1/2-1/2

[Event "Croatian-ch Youth U15 2022"]
[Site "Trogir"]
[Date "2022.06.26"]
[Round "8.2"]
[White "Colev, Ivor"]
[Black "Zadro, Matej"]
[Result "1-0"]
[ECO "C95"]
[WhiteElo "1984"]
[BlackElo "1861"]
[Annotator "RC"]
[PlyCount "107"]
[EventDate "2022.06.22"]
[EventType "swiss"]
[EventCountry "CRO"]
[SourceTitle "playchess.com"]
[Source "ChessBase"]
[SourceQuality "1"]
[TimeControl "5400+30"]

1. e4 {[%emt 0:00:01]} e5 {[%emt 0:00:06]} 2. Nf3 {[%emt 0:00:03]} Nc6 {[%emt 0:00:08]} 3. Bb5 {[%emt 0:00:04]} a6 {[%emt 0:00:05]} 4. Ba4 {[%emt 0:00:04]} Nf6 {[%emt 0:00:06]} 5. O-O {[%emt 0:00:04]} b5 {[%emt 0:00:05]} 6. Bb3 {[%emt 0:00:03]} Be7 {[%emt 0:00:02]} 7. Re1 {[%emt 0:00:04]} d6 {[%emt 0:00:05]} 8. c3 {[%emt 0:00:03]} O-O {[%emt 0:00:05]} 9. h3 {[%emt 0:00:02]} Nb8 {[%emt 0:00:08]} 10. d4 {[%emt 0:00:14]} Nbd7 {[%emt 0:00:03]} 11. Nbd2 {[%emt 0:01:08]} Bb7 {[%emt 0:00:15]} 12. Bc2 {[%emt 0:00:27]} c5 {[%emt 0:02:30]} 13. d5 {[%emt 0:00:18]} c4 {[%emt 0:05:58]} 14. Nf1 {[%emt 0:04:43]} Nc5 {[%emt 0:17:15]} 15. Ng3 {[%emt 0:00:27]} g6 {[%emt 0:03:49]} 16. Bh6 {[%emt 0:05:53]} Re8 {[%emt 0:00:43]} 17. Qd2 {[%emt 0:00:22]} Bf8 {[%emt 0:01:00]} 18. Bxf8 {[%emt 0:07:52]} Rxf8 {[%emt 0:01:42]} 19. Qh6 {[%emt 0:00:50]} Qe7 {[%emt 0:21:43]} 20. Ng5 {[%emt 0:19:36]} Rfe8 {[%emt 0:15:52]} 21. Rf1 {[%emt 0:20:39]} Qf8 {[%emt 0:13:44]} 22. Qxf8+ {[%emt 0:00:18]} Rxf8 {[%emt 0:01:56]} 23. f4 {[%emt 0:00:16]} Nfd7 {[%emt 0:00:40]} 24. f5 {[%emt 0:07:13]} h6 {[%emt 0:04:38]} 25. Nf3 {[%emt 0:00:15]} Nf6 {[%emt 0:01:38]} 26. Nd2 {[%emt 0:08:07]} Kg7 {[%emt 0:02:34]} 27. Rfb1 {[%emt 0:07:58]} Bc8 {[%emt 0:03:04]} 28. fxg6 {[%emt 0:05:08]} fxg6 {[%emt 0:00:09]} 29. b4 {[%emt 0:01:02]} cxb3 {[%emt 0:01:36]} 30. axb3 {[%emt 0:00:07]} Bd7 {[%emt 0:01:34]} 31. b4 {[%emt 0:01:43]} Nb7 {[%emt 0:02:04]} 32. Ra3 {[%emt 0:07:03]} Rfc8 {[%emt 0:00:30]} 33. Rba1 {[%emt 0:00:06]} a5 {[%emt 0:00:37]} 34. Bd3 {[%emt 0:02:42]} a4 {[%emt 0:00:32]} 35. c4 {[%emt 0:00:24]} Nd8 {[%emt 0:00:31]} 36. cxb5 {[%emt 0:00:47]} Rcb8 {[%emt 0:00:09]} 37. Rxa4 {[%emt 0:00:41]} Rxa4 {[%emt 0:00:05]} 38. Rxa4 {[%emt 0:00:04]} Bxb5 {[%emt 0:00:04]} 39. Bxb5 {[%emt 0:00:32]} Rxb5 {[%emt 0:00:05]} 40. Nc4 {[%emt 0:00:18]} Nb7 {[%emt 0:01:05]} 41. Kf2 {[%emt 0:01:10]} Nd7 {[%emt 0:00:29]} 42. Ne2 {[%emt 0:01:07]} Nb6 {[%emt 0:00:39]} 43. Nxb6 {[%emt 0:00:04]} Rxb6 {[%emt 0:00:04]} 44. Ke3 {[%emt 0:00:12]} Kf6 {[%emt 0:00:26]} 45. Kd3 {[%emt 0:00:36]} Kg5 {[%emt 0:01:55]} 46. Kc4 {[%emt 0:00:35]} Kh4 {[%emt 0:00:23]} 47. Ra8 {[%emt 0:00:16]} h5 {[%emt 0:00:27]} 48. Nc3 {[%emt 0:01:44]} g5 {[%emt 0:00:31]} 49. Na4 {[%emt 0:00:17]} Na5+ {[%emt 0:00:04]} 50. Rxa5 {[%emt 0:00:24]} Rb8 {[%emt 0:00:16]} 51. Nc3 {[%emt 0:00:13]} Rc8+ {[%emt 0:00:59]} 52. Kd3 {[%emt 0:00:06]} Rb8 {[%emt 0:00:43]} 53. b5 {[%emt 0:00:07]} Kg3 {[%emt 0:00:03]} 54. Ra2 {[%emt 0:00:17]} 1-0

[Event "Croatian-ch Youth U15 2022"]
[Site "Trogir"]
[Date "2022.06.26"]
[Round "8.3"]
[White "Djuric, Leon"]
[Black "Franc, Borna"]
[Result "0-1"]
[ECO "E09"]
[WhiteElo "1475"]
[BlackElo "2032"]
[Annotator "NA RC"]
[PlyCount "62"]
[EventDate "2022.06.22"]
[EventType "swiss"]
[EventCountry "CRO"]
[SourceTitle "playchess.com"]
[Source "ChessBase"]
[SourceQuality "1"]
[TimeControl "5400+30"]

1. d4 {[%emt 0:00:02]} d5 {[%emt 0:00:02]} 2. c4 {[%emt 0:00:05]} e6 {[%emt 0:00:02]} 3. Nf3 {[%emt 0:00:36]} Nf6 {[%emt 0:00:02]} 4. g3 {[%emt 0:00:06]} Be7 {[%emt 0:00:05]} 5. Bg2 {[%emt 0:00:06]} O-O {[%emt 0:00:05]} 6. O-O {[%emt 0:00:03]} c6 {[%emt 0:00:11]} 7. Qc2 {[%emt 0:00:02]} b6 {[%emt 0:01:29]} 8. Nbd2 {[%emt 0:00:56]} Bb7 {[%emt 0:00:04]} 9. e4 {[%emt 0:00:09]} dxe4 {[%emt 0:00:11]} 10. Nxe4 {[%emt 0:00:06]} Nbd7 {[%emt 0:01:29]} 11. Rd1 {[%emt 0:01:46]} Nxe4 {[%emt 0:00:56]} 12. Qxe4 {[%emt 0:00:14]} Nf6 {[%emt 0:00:04]} 13. Qc2 {[%emt 0:00:13]} Qc8 {[%emt 0:00:36]} 14. Ne5 {[%emt 0:13:08]} c5 {[%emt 0:00:41]} 15. d5 {[%emt 0:03:23]} Bd6 {[%emt 0:12:40]} 16. f4 {[%emt 0:08:54]} exd5 {[%emt 0:00:15]} 17. cxd5 {[%emt 0:00:41]} Qc7 {[%emt 0:00:39]} 18. Nc4 {[%emt 0:01:54]} b5 {[%emt 0:02:05]} 19. Ne3 {[%emt 0:01:05]} c4 {[%emt 0:01:10]} 20. Kh1 {[%emt 0:03:46]} Rfe8 {[%emt 0:04:56]} 21. a4 {[%emt 0:04:55]} Bc5 {[%emt 0:04:35]} 22. Nf5 {[%emt 0:01:54]} Rad8 {[%emt 0:03:25]} 23. axb5 {[%emt 0:00:50]} Bxd5 {[%emt 0:00:43]} 24. Bxd5 {[%emt 0:02:47]} Rxd5 {[%emt 0:00:24]} 25. Nh4 {[%emt 0:02:49]} Qb7 {[%emt 0:02:22]} 26. Ng2 {[%emt 0:00:40]} Rxd1+ {[%emt 0:00:20]} 27. Qxd1 {[%emt 0:00:11]} Ng4 {[%emt 0:00:03]} 28. Qf1 {[%emt 0:00:45]} Nf2+ {[%emt 0:00:02]} 29. Kg1 {[%emt 0:00:07]} Nd3+ {[%emt 0:00:02]} 30. Kh1 {[%emt 0:00:07]} Re1 {[%emt 0:00:02]} 31. Qxe1 {[%emt 0:00:24]} Nxe1 {[%emt 0:00:03]} 0-1

[Event "Croatian-ch Youth U15 2022"]
[Site "Trogir"]
[Date "2022.06.26"]
[Round "8.4"]
[White "Horcicka, Jan"]
[Black "Bunic, Emanuel"]
[Result "0-1"]
[ECO "C50"]
[WhiteElo "1804"]
[BlackElo "1941"]
[Annotator "NA RC"]
[PlyCount "92"]
[EventDate "2022.06.22"]
[EventType "swiss"]
[EventCountry "CRO"]
[SourceTitle "playchess.com"]
[Source "ChessBase"]
[SourceQuality "1"]
[TimeControl "5400+30"]

1. e4 {[%emt 0:00:04]} e5 {[%emt 0:00:09]} 2. Nf3 {[%emt 0:00:07]} Nc6 {[%emt 0:00:09]} 3. Bc4 {[%emt 0:00:08]} Bc5 {[%emt 0:00:12]} 4. Nc3 {[%emt 0:00:15]} Nf6 {[%emt 0:00:18]} 5. d3 {[%emt 0:00:22]} d6 {[%emt 0:01:25]} 6. Bg5 {[%emt 0:01:04]} h6 {[%emt 0:00:20]} 7. Bxf6 {[%emt 0:00:40]} Qxf6 {[%emt 0:00:07]} 8. Nd5 {[%emt 0:00:26]} Qd8 {[%emt 0:00:08]} 9. c3 {[%emt 0:00:15]} Ne7 {[%emt 0:01:23]} 10. d4 {[%emt 0:02:16]} exd4 {[%emt 0:01:21]} 11. cxd4 {[%emt 0:00:17]} Nxd5 {[%emt 0:01:52]} 12. dxc5 {[%emt 0:04:30]} Nf4 {[%emt 0:03:24]} 13. O-O {[%emt 0:12:11]} dxc5 {[%emt 0:13:36]} 14. Qxd8+ {[%emt 0:07:29]} Kxd8 {[%emt 0:00:08]} 15. Bxf7 {[%emt 0:00:36]} Ke7 {[%emt 0:00:30]} 16. Bc4 {[%emt 0:00:57]} Rd8 {[%emt 0:08:12]} 17. h3 {[%emt 0:10:03]} Rd6 {[%emt 0:11:54]} 18. Rfe1 {[%emt 0:15:25]} Be6 {[%emt 0:10:26]} 19. Bxe6 {[%emt 0:09:41]} Kxe6 {[%emt 0:00:28]} 20. e5 {[%emt 0:14:12]} Rd3 {[%emt 0:03:21]} 21. Re4 {[%emt 0:00:50]} Rf8 {[%emt 0:17:12]} 22. Ne1 {[%emt 0:06:56]} Rd4 {[%emt 0:06:34]} 23. Re3 {[%emt 0:01:01]} Rfd8 {[%emt 0:01:42]} 24. Nf3 {[%emt 0:01:41]} Rd1+ {[%emt 0:03:45]} 25. Re1 {[%emt 0:02:13]} Rxa1 {[%emt 0:00:26]} 26. Rxa1 {[%emt 0:00:01]} Nd3 {[%emt 0:00:50]} 27. Kf1 {[%emt 0:05:00]} Nxb2 {[%emt 0:01:21]} 28. Ke2 {[%emt 0:03:21]} b6 {[%emt 0:00:46]} 29. Rb1 {[%emt 0:02:27]} Nd3 {[%emt 0:01:02]} 30. Ng1 {[%emt 0:00:31]} Nxe5 {[%emt 0:00:32]} 31. f4 {[%emt 0:00:01]} Nc6 {[%emt 0:01:01]} 32. g4 {[%emt 0:00:05]} g6 {[%emt 0:01:10]} 33. Re1 {[%emt 0:00:22]} Kf6 {[%emt 0:01:09]} 34. Kf3 {[%emt 0:00:57]} Nd4+ {[%emt 0:00:50]} 35. Kf2 {[%emt 0:00:17]} c4 {[%emt 0:01:53]} 36. Rc1 {[%emt 0:00:13]} b5 {[%emt 0:00:43]} 37. Ke3 {[%emt 0:00:19]} Ne6 {[%emt 0:02:12]} 38. Nf3 {[%emt 0:00:29]} Rd3+ {[%emt 0:00:20]} 39. Kf2 {[%emt 0:00:03]} Nxf4 {[%emt 0:00:21]} 40. h4 {[%emt 0:00:03]} Ra3 {[%emt 0:01:27]} 41. Rc2 {[%emt 0:00:11]} Nd3+ {[%emt 0:00:33]} 42. Ke3 {[%emt 0:00:10]} Ne1+ {[%emt 0:00:34]} 43. Kd2 {[%emt 0:00:10]} Nxc2 {[%emt 0:00:08]} 44. g5+ {[%emt 0:00:04]} hxg5 {[%emt 0:00:16]} 45. hxg5+ {[%emt 0:00:03]} Kg7 {[%emt 0:00:27]} 46. Kxc2 {[%emt 0:00:26]} Rxf3 {[%emt 0:00:07]} 0-1